Cogmind - Beta 16 @@@ ROGUE MODE // 2025.11.16 @ 17:06:22 Player: H3-MLN Result: Destroyed by G-50 Soldier with Heavy Laser Performance ------------- Evolutions (5) 2500 Regions Visited (20) 4000 Robots Destroyed (243) 1215 Value Destroyed (7305) 7305 Prototype IDs (60) 1200 Alien Tech Used (0) 0 Bonus (728) 728 TOTAL SCORE: 16948 Bonus ------- High Alert Combat Kills 763 Follower Combat Kills 2107 Network Hubs Disabled 800 Aligned with FarCom 300 Built Enhanced Grunts 300 A7 Reached Mainframe 300 Met R17 at Cetus 500 Friendly Fire -4342 Cogmind --------- Core Integrity 0/1000 Matter 297/300 Energy 100/100 System Corruption 41% Temperature Cool (27) Movement Flying (114) Ox1 Location -5/Upper Caves Parts ------- > --- POWER (2) -------- (None) > --- PROPULSION (5) --- VTOL Module Nuclear Pulse Array > --- UTILITY (6) ------ Large Storage Unit Structural Scanner Enhanced Optical Array Makeshift Salvage Targeting Computer Advanced Melee Analysis Suite Advanced System Shield > --- WEAPON (4) ------- (None) > --- INVENTORY (15) --- Backup Power III Compact Battery (200) Advanced Signal Interpreter Advanced Reaction Control System Long-range Tractor Beam Improved Trap Extractor (4/6 Blade) Chronowheel Long-range Proton Cannon Heavy Phase Cannon Improved Remote Datajack CPS Tube (1) Lance PL-3XN's Ring of Power Peak State ------------ > --- POWER ------------ Cold Fusion Reactor Neutrino Core > --- PROPULSION ------- Improved Medium Treads Heavy Siege Treads Biometal Heavy Treads > --- UTILITY ---------- Improved Coolant Injector Large Storage Unit Improved Sensor Array Advanced Signal Interpreter Medium Regenerative Plating Improved System Shield > --- WEAPON ----------- Long-range Proton Cannon Long-range Proton Cannon Enhanced Gauss Cannon Enhanced Gauss Cannon > --- INVENTORY -------- Cold Fusion Reactor Cold Fusion Reactor Compact Battery Compact Battery Improved Light Armor Plating Layered Light Armor Plating Long-range Tractor Beam Improved Trap Extractor Chronowheel Wave Gun Wave Gun Wave Gun Phase Cannon CPS Tube PL-3XN's Ring of Power [Rating: 108] Favorites ----------- Power Compact Particle Reactor Engine Cooled Ion Engine Power Core Enhanced Nuclear Core Reactor Compact Particle Reactor Propulsion Improved VTOL Module Treads Light Treads Leg Armored Leg Wheel Armored Huge Wheel Hover Unit Antigrav System Flight Unit Improved VTOL Module Utility Large Storage Unit Device Advanced Gravity Neutralizer Storage Large Storage Unit Processor Advanced Signal Interpreter Hackware Hacking Suite Protection Medium Regenerative Plating Weapon Enhanced Autogun Energy Gun Pulse Rifle Energy Cannon Light EM Pulse Cannon Ballistic Gun Enhanced Autogun Ballistic Cannon Enhanced Gauss Cannon Launcher Mini Grenade Launcher Special Weapon CPS Tube Impact Weapon Heavy Flail Slashing Weapon Phasing Sabre Piercing Weapon Spear Special Melee Weapon Advanced Datajack Build | -11 -10 -10 -10 -9 -8 -8 -8 -8 -6 -6 -6 -6 -6 -6 -6 -5 -5 -5 -5 -5 ------- Run | Yrd Mat Min Exi Min Mat Sto Rec Scr Fac Was Fac Ext Cet Arc Hub Fac Was Fac Upp Upp Slots Evolved 10 | . . . . . 4 . . . 4 . . . . . . 2 . . . . Power 1 | . . . . . . . . . . . . . . . . 1 . . . . Propulsion 3 | . . . . . 1 . . . 2 . . . . . . . . . . . Utility 4 | . . . . . 1 . . . 2 . . . . . . 1 . . . . Weapon 2 | . . . . . 2 . . . . . . . . . . . . . . . Parts Attached 203 | 7 9 4 . 5 16 27 4 5 20 2 5 4 7 2 6 13 3 56 8 . Power 20 | 1 2 1 . 1 3 1 . . 2 . . . 1 . . 1 . 7 . . Engine 12 | 1 2 1 . 1 3 1 . . 1 . . . . . . 1 . 1 . . Core 4 | . . . . . . . . . 1 . . . . . . . . 3 . . Reactor 4 | . . . . . . . . . . . . . 1 . . . . 3 . . Propulsion 61 | 2 . 2 . 1 5 10 2 1 8 1 1 . 1 . 3 5 1 15 3 . Treads 26 | 2 . 2 . 1 4 9 2 . 2 . . . 1 . . . 1 2 . . Leg 3 | . . . . . . . . . 2 . . . . . . . . 1 . . Wheel 4 | . . . . . . . . 1 . . . . . . . . . 3 . . Hover 12 | . . . . . . . . . . . . . . . . 4 . 8 . . Flight 16 | . . . . . 1 1 . . 4 1 1 . . . 3 1 . 1 3 . Utility 59 | 2 2 1 . 1 2 5 1 2 5 . 3 . 3 1 3 5 1 18 4 . Device 24 | 1 1 . . . 1 1 . 1 2 . 1 . 1 . 2 4 1 7 1 . Storage 9 | 1 1 . . . . 1 1 . 1 . 1 . . . . . . 3 . . Processor 7 | . . . . . . . . . 1 . . . . . . . . 4 2 . Hackware 8 | . . . . . . 1 . 1 . . 1 . 1 . 1 1 . 1 1 . Protection 11 | . . 1 . 1 1 2 . . 1 . . . 1 1 . . . 3 . . Artifact . | . . . . . . . . . . . . . . . . . . . . . Weapon 63 | 2 5 . . 2 6 11 1 2 5 1 1 4 2 1 . 2 1 16 1 . Energy Gun 10 | 1 1 . . . 1 . . . . . . . 1 . . . . 6 . . Energy Cannon 7 | . 2 . . 1 . . . . . . . . . . . . . 3 1 . Ballistic Gun 21 | 1 2 . . 1 3 10 . . 2 . . . 1 . . . . 1 . . Ballistic Cannon 5 | . . . . . . . . . . . . . . . . . 1 4 . . Launcher 4 | . . . . . 2 . . . 1 . . . . . . . . 1 . . Special Weapon 4 | . . . . . . . . 1 1 1 . . . . . 1 . . . . Impact Weapon 3 | . . . . . . . . 1 1 . . . . . . 1 . . . . Slashing Weapon 4 | . . . . . . 1 . . . . . 3 . . . . . . . . Piercing Weapon 2 | . . . . . . . . . . . 1 . . . . . . 1 . . Special Melee Weapon 3 | . . . . . . . 1 . . . . 1 . 1 . . . . . . Unidentified Prototypes 21 | . . . . . 3 4 . 1 1 1 1 . 4 . . . 1 5 . . Corrupted Parts 3 | . . . . . . . . 1 . . . . . . . . 1 1 . . System Corruption 15 | . . . . . . . . 3 . . . . . . . . 8 4 . . Parts Lost 57 | . . 4 . . 1 1 2 . 1 . . . . . 11 10 3 19 4 1 Power 3 | . . . . . . . . . . . . . . . 1 . . 2 . . Propulsion 25 | . . 2 . . . . 1 . . . . . . . 6 7 . 7 1 1 Utility 13 | . . . . . 1 1 1 . . . . . . . 2 2 2 3 1 . Weapon 16 | . . 2 . . . . . . 1 . . . . . 2 1 1 7 2 . Highest Loss Streak 11 | . . 2 . . 1 1 2 . 1 . . . . . 11 7 9 10 4 1 To Critical Strikes 4 | . . . . . . . . . . . . . . . . . . 4 . . Average Backups 12 | 1 7 8 8 9 8 13 18 16 15 7 7 11 13 12 12 3 3 10 11 12 Power . | . 1 1 2 1 1 . . . . . . . . . . . . 1 1 1 Propulsion 2 | . 1 1 . . 1 4 6 5 4 1 1 4 3 2 1 . . . . . Utility 3 | . 1 3 3 3 2 3 4 4 4 2 2 3 2 3 4 1 2 3 3 5 Weapon 3 | . 3 3 3 3 2 4 5 5 2 1 . 1 3 3 2 . . 3 2 3 Tool/Special . | . . . . . . . . . . . . . . . . . . . . . Unused Backups 32 | . 3 . . 3 3 2 1 . 1 . . 1 . 1 5 . . 6 2 4 Power 5 | . 1 . . . 1 . . . . . . . . . . . . 2 1 . Propulsion 4 | . 1 . . 1 . 1 . . . . . . . 1 . . . . . . Utility 12 | . . . . 1 1 . 1 . 1 . . . . . 3 . . 3 . 2 Weapon 7 | . 1 . . 1 1 . . . . . . 1 . . 1 . . 1 1 . Tool/Special 4 | . . . . . . 1 . . . . . . . . 1 . . . . 2 Average Slot Usage (%) 92 | . 99 99 100 100 97 99 94 83 88 100 99 99 99 100 95 71 10 79 54 52 Engine 5 | . 14 14 14 14 9 9 9 9 2 . . . . . . 3 . . 1 . Core 1 | . . . . . . . . . 3 6 6 5 5 . . . . 6 . . Reactor 1 | . . . . . . . . . . . . . . 6 5 . . 2 . . Treads 13 | . 27 27 28 28 24 26 23 23 3 . . . . . . . 1 10 . . Flight 11 | . . . . . 1 . . . 12 33 33 33 32 33 31 17 . . 13 17 Device 8 | . 14 6 . . 14 8 8 8 7 13 12 13 12 6 12 12 1 8 5 5 Storage 7 | . 14 14 14 14 9 9 9 7 5 6 6 6 6 6 5 . . 6 5 5 Processor 3 | . . . . . . . . . 5 6 6 6 6 6 6 5 1 7 11 17 Hackware 5 | . . . . . . 4 9 9 11 6 6 6 6 6 6 11 4 2 2 5 Protection 3 | . . 7 14 14 3 4 . . . . . . . 5 . 2 . 5 1 . Energy Gun 1 | . 3 . . . 7 6 . . . . . . . . . . . 4 1 . Energy Cannon 2 | . 8 13 14 7 . . . . . . . . . . . . . 4 . . Ballistic Gun 8 | . 15 14 14 20 26 29 29 . 2 . . . . . . . . 1 . . Launcher 1 | . . . . . . . . . . 6 6 6 6 6 5 . . . . . Impact Weapon 1 | . . . . . . . . 4 9 6 6 1 . . . 1 . . . . Slashing Weapon 3 | . . . . . . . . 9 6 6 2 4 6 6 5 . . . . . Piercing Weapon 2 | . . . . . . . . . . . 3 6 6 6 6 4 . . . . Special Melee Weapon 3 | . . . . . . . 4 9 2 . . 4 5 6 5 . . . . . Peak Build Rating 108 | 7 12 11 13 15 37 43 43 48 65 70 72 78 87 88 91 64 37 108 71 45 Average Rating 54 | 4 9 10 11 14 29 37 40 35 60 66 67 74 76 86 84 55 12 86 41 45 On Entrance 40 | . 7 10 10 13 15 33 41 34 43 62 66 72 76 84 88 46 18 21 71 45 Avg Prop Armor Cover (%) 8 | . . . . . . . . 12 12 4 4 . . 6 6 8 41 11 6 . Naked Turns 29 | . . . . . . . . . . . . . . . . . 29 . . . Heaviest Build 101 | 12 32 34 34 37 49 71 101 98 100 26 36 37 41 48 43 19 27 97 70 21 Greatest Support 175 | 40 40 43 43 43 63 60 60 60 28 27 38 38 42 42 44 20 75 175 30 21 Greatest Overweight (x) 26 | . . . . . 1 1 2 3 3 . 1 . 1 15 1 . . 26 5 . Average Overweight (x) 1 | . . . . . . . 1 1 1 . . . . 11 . . . . . . Largest Inventory Capacity 25 | 8 15 15 15 15 15 20 25 25 25 10 15 15 15 15 15 5 5 15 15 15 Average Capacity 16 | 6 10 15 15 15 15 19 23 21 19 10 10 15 15 15 14 5 5 11 15 15 Most Carried 25 | 3 11 11 15 15 15 20 25 25 25 10 13 15 15 15 15 5 5 15 15 13 Average Carried 15 | 1 7 9 12 14 14 19 22 20 18 9 9 13 14 14 14 4 4 11 12 13 Final Capacity 25 | 8 15 15 15 15 15 20 25 25 10 10 15 15 15 15 5 5 5 15 15 15 Final Carried 25 | 3 11 11 15 15 15 20 25 25 10 10 13 15 15 15 4 5 5 15 13 13 Class Distribution -------------------- 27% | Commander-Mutant 23% | Mutant 7% | Scavenger-Tank 6% | Scavenger-Gunner 5% | Commander-Sprinter 5% | Commander-Tank 5% | Scavenger-Sprinter 4% | Sprinter 3% | Scavenger-Mutant 3% | Skirmisher 3% | Tank Dominant Class ---------------- Mutant | -10/Materials Mutant | -10/Mines Mutant | -10/Exiles Mutant | -9/Mines Scavenger-Tank | -8/Materials Scavenger-Gunner | -8/Storage Commander-Tank | -8/Recycling Commander-Mutant | -8/Scraptown Mutant | -6/Factory Scavenger-Sprinter | -6/Waste Sprinter | -6/Factory Commander-Sprinter | -6/Extension Commander-Sprinter | -6/Cetus Commander-Mutant | -6/Archives Scavenger-Sprinter | -6/Hub_04(d) Scavenger-Scout | -5/Factory Mutant | -5/Waste Skirmisher | -5/Factory Scavenger-Mutant | -5/Upper Caves Scavenger-Mutant | -5/Upper Caves Resources | -11 -10 -10 -10 -9 -8 -8 -8 -8 -6 -6 -6 -6 -6 -6 -6 -5 -5 -5 -5 -5 ----------- Run | Yrd Mat Min Exi Min Mat Sto Rec Scr Fac Was Fac Ext Cet Arc Hub Fac Was Fac Upp Upp Matter Collected 6627 | 282 341 130 . 313 458 1828 357 80 419 30 120 120 110 30 100 147 . 1403 359 . Remotely 143 | . . . . . . . . . . . . . . . . . . 143 . . Salvage Created 9425 | 78 841 257 . 311 477 2973 551 404 424 . 187 134 59 317 368 253 . 1686 105 . Parts 518 | 8 33 19 . 22 24 167 30 9 26 . 6 5 10 25 30 20 . 77 7 . Haulers Intercepted 15 | . 2 . . . 3 6 . . . . 1 . . . 1 . . 2 . . Recyclers Shooed 7 | . 2 . . . . 2 . . 1 . . . . . . . . 2 . . Parts Field Recycled . | . . . . . . . . . . . . . . . . . . . . . Retrieved Matter . | . . . . . . . . . . . . . . . . . . . . . Parts Self-Destructed 4 | . . . . . . . . . . . . . . . . . . . 4 . Prevented 2 | . . . . . . . . . . . . . . . . . . . 2 . Parts Restored . | . . . . . . . . . . . . . . . . . . . . . Kills | -11 -10 -10 -10 -9 -8 -8 -8 -8 -6 -6 -6 -6 -6 -6 -6 -5 -5 -5 -5 -5 ------- Run | Yrd Mat Min Exi Min Mat Sto Rec Scr Fac Was Fac Ext Cet Arc Hub Fac Was Fac Upp Upp Combat Hostiles Destroyed 140 | . 13 8 . 8 8 56 6 . 5 . . 2 . . 4 2 . 24 4 . Melee 11 | . . . . . . . . . 4 . . 1 . . 2 2 . 2 . . Guns 77 | . 9 3 . 5 5 42 6 . 1 . . . . . . . . 3 3 . Cannons 26 | . 4 5 . 3 . . . . . . . . . . . . . 13 1 . AOE 22 | . . . . . 3 14 . . . . . 1 . . 2 . . 2 . . Classes Destroyed 20 | 2 5 2 . 2 . 5 . 2 1 . . . . . . . . 1 . . Worker 22 | . 1 . . . 1 7 . 2 3 . . . . . . 2 . 6 . . Builder 13 | . . 2 . . . 2 . 1 . . . . . . . 4 . 4 . . Tunneler 2 | 1 . . . . . . . . . . . . . . . 1 . . . . Hauler 15 | . 2 . . . 3 6 . . . . 1 . . . 1 . . 2 . . Recycler 16 | 1 2 . . . 1 5 3 . 1 . 1 . . . . . . 2 . . Operator 15 | . . . . . . 3 . . . . . . . 9 2 . . 1 . . Drone 6 | . . . . . . . . . . . . . . . . . . 6 . . Watcher 13 | . 1 . . . 1 2 . . . . . 1 . . 3 1 . 4 . . Swarmer 27 | . 3 3 . . 4 6 . . . . . . . . 2 1 . 4 4 . Grunt 52 | . 10 2 . 5 2 26 . 1 . . . 1 . . . . . 5 . . Brawler 3 | . . . . 1 . 2 . . . . . . . . . . . . . . Duelist 6 | . . . . . . 4 . 2 . . . . . . . . . . . . Protector 4 | . . . . . . 3 . 1 . . . . . . . . . . . . Sentry 24 | . . . . 1 2 12 4 2 1 . . . . . 1 . . 1 . . Demolisher 4 | . . . . . . 2 2 . . . . . . . . . . . . . Hunter 4 | . . . . . . 1 . 1 1 . . 1 . . . . . . . . Programmer 13 | . . . . . . . . . 3 . . . . . 1 1 . 8 . . Explorer 1 | . . . . . . . . 1 . . . . . . . . . . . . Scientist 1 | . . . . . . . . 1 . . . . . . . . . . . . Assembled 4 | . . 3 . 1 . . . . . . . . . . . . . . . . Thug 2 | . . . . . . 2 . . . . . . . . . . . . . . Best Kill Streak 9 | 2 3 3 . 3 5 9 3 . 5 . 1 1 . 8 2 3 . 5 3 . Combat Bots Only 9 | . 3 2 . 3 4 9 2 . 1 . . 1 . . 2 1 . 4 3 . Max Kills in Single Turn 3 | 1 2 1 . 1 3 3 2 2 1 . 1 1 1 1 1 1 . 2 1 . Gunslinging 1 | . 1 . . . . 1 . . . . . . . . . . . . . . Exploded 3 | . . . . . 3 3 . . . . . 1 . . 1 . . 1 . . Melee 1 | . . . . . . . . . 1 . . 1 . . 1 1 . 1 . . Uniques/NPCs Destroyed 1 | . . . . . . . . . . . . . 1 . . . . . . . A7 (-6/Cetus) Combat | -11 -10 -10 -10 -9 -8 -8 -8 -8 -6 -6 -6 -6 -6 -6 -6 -5 -5 -5 -5 -5 -------- Run | Yrd Mat Min Exi Min Mat Sto Rec Scr Fac Was Fac Ext Cet Arc Hub Fac Was Fac Upp Upp Hostile Shots Fired 848 | . 68 30 1 41 25 124 8 . 40 . . 8 . . 62 86 6 299 46 4 Missed 229 | . 16 2 . 9 5 36 1 . 18 . . 6 . . 25 39 . 63 9 . Hits 619 | . 52 28 1 32 20 88 7 . 22 . . 2 . . 37 47 6 236 37 4 Melee 24 | . . 2 1 1 . 3 . . . . . . . . . 11 6 . . . Projectile 595 | . 52 26 . 31 20 85 7 . 22 . . 2 . . 37 36 . 236 37 4 AOE 12 | . . . . . . 2 3 . . . . . . . 2 . . 5 . . Critical Strikes 60 | . 2 . . . 1 2 . . . . . 1 . . 3 6 2 43 . . Damage Taken 11677 | . 637 327 21 381 386 1404 182 . 271 . . 46 . . 1210 936 278 4950 565 83 Core 2031 | . 93 39 . 69 86 175 . . 61 . . 46 . . 452 196 222 525 29 38 Absorbed by Shields . | . . . . . . . . . . . . . . . . . . . . . Reduced by Siege Mode 123 | . . . . . . . . . . . . . . . . . . 123 . . Regen/Repaired (Parts) 2037 | . 56 . . . 34 . . . 25 . 152 137 . 143 . . . 1490 . . Core Remaining (%) 51 | 100 . . . 19 . . . 52 . . . . . . 34 . . . . . Volleys Fired 476 | 4 75 25 5 47 27 126 15 . 13 . . 2 . . 3 1 . 109 24 . Largest 4 | 2 2 2 2 2 4 4 4 . 2 . . 1 . . 1 1 . 4 3 . Hottest 256 | 60 112 76 76 79 129 138 100 . 50 . . 30 . . 30 7 . 256 172 . Shots Fired 1172 | 8 146 49 10 94 97 438 60 . 24 . . 2 . . 3 1 . 199 41 . Gun 928 | 8 109 26 5 76 96 424 60 . 23 . . . . . . . . 82 19 . Cannon 214 | . 37 23 5 18 . . . . . . . . . . . . . 109 22 . Launcher 27 | . . . . . 1 14 . . . . . 1 . . 3 . . 8 . . Special 3 | . . . . . . . . . 1 . . 1 . . . 1 . . . . Kinetic 761 | 4 77 26 5 76 78 340 60 . 23 . . . . . . . . 54 18 . Thermal 209 | 4 32 . . . 18 84 . . . . . . . . . . . 67 4 . Explosive 27 | . . . . . 1 14 . . . . . 1 . . 3 . . 8 . . Electromagnetic 172 | . 37 23 5 18 . . . . . . . . . . . . . 70 19 . Robot Hit Streak 16 | 6 7 12 . 10 9 16 9 . 3 . . 3 . . . 4 . 9 2 . Robot Miss Streak 18 | 1 4 3 . 3 3 3 5 . 3 . . . . . . . . 6 18 . Penetration Max 1 | . . . . . . . . . . . . . . . . . . 1 . . Secondary Targets 12 | . 2 . . 1 2 6 . . . . . . . . . . . 1 . . Max Gunslinging Chain 1 | . 1 . . 1 1 1 . . . . . . . . . . . 1 . . Shots Hit Robots 789 | 6 83 31 . 37 54 257 48 12 33 . 2 41 23 12 13 25 . 106 6 . Core Hits 377 | 3 33 16 . 14 26 154 13 2 9 . 1 5 6 8 17 8 . 58 4 . Critical Kills 4 | . 1 . . . . 1 . 1 1 . . . . . . . . . . . Critical Parts Destroyed 6 | . . . . . . 1 . 2 2 . . . . . . . . 1 . . Critical Strikes 35 | . 4 . . . 1 6 . 3 4 . . . 1 2 3 2 . 8 1 . Burn 7 | . 2 . . . 1 4 . . . . . . . . . . . . . . Destroy 4 | . 1 . . . . 2 . . . . . . . . . . . 1 . . Blast 6 | . . . . . . . . . . . . . . . . . . 5 1 . Corrupt 2 | . 1 . . . . . . . . . . . . . . . . 1 . . Smash 6 | . . . . . . . . 3 3 . . . . . . . . . . . Sever 1 | . . . . . . . . . 1 . . . . . . . . . . . Impale 9 | . . . . . . . . . . . . . 1 2 3 2 . 1 . . Melee Attacks 289 | . . . . . . 1 16 12 49 . 12 56 24 13 45 43 . 16 2 . Impact 54 | . . . . . . . . 11 28 . 4 . . . . 11 . . . . Slashing 59 | . . . . . . 1 . 1 20 . . 17 10 3 7 . . . . . Piercing 122 | . . . . . . . . . . . 8 3 13 10 38 32 . 16 2 . Sneak Attacks 119 | . . . . . . . 16 12 5 . 2 36 23 11 4 8 . 2 . . Combat Hostiles 3 | . . . . . . . . . 1 . . . . . 2 . . . . . Follow-up Attacks 12 | . . . . . . . . 1 4 . . . 1 2 2 2 . . . . Damage Inflicted 23207 | 69 1322 522 . 589 1066 6781 660 896 1328 . 221 260 1129 861 1351 1058 . 4961 133 . Guns 8931 | 69 818 172 . 389 864 4501 660 . 251 . . . . . . . . 1104 103 . Cannons 3437 | . 504 350 . 200 . . . . . . . . . . . . . 2353 30 . Explosions 4365 | . . . . . 202 2277 . . . . . 66 . . 683 . . 1137 . . Melee 6471 | . . . . . . . . 896 1077 . 221 194 1129 861 668 1058 . 367 . . Ramming 3 | . . . . . . 3 . . . . . . . . . . . . . . Kinetic 7139 | 37 563 172 . 389 627 3413 660 . 251 . . . . . . . . 997 30 . Thermal 2638 | 32 255 . . . 237 1088 . . . . . . . . . . . 1026 . . Explosive 3746 | . . . . . 202 2277 . . . . . 66 . . 252 . . 949 . . Electromagnetic 3210 | . 504 350 . 200 . . . . . . . . . . 431 . . 1622 103 . Impact 1951 | . . . . . . . . 851 729 . 138 . . . . 233 . . . . Slashing 1363 | . . . . . . . . 45 348 . . 194 530 207 39 . . . . . Piercing 3157 | . . . . . . . . . . . 83 . 599 654 629 825 . 367 . . Highest Corruption 41 | . . . . . . 1 1 3 1 1 1 . . . 8 1 14 41 41 41 Average Corruption 11 | . . . . . . 1 1 3 1 1 1 . . . 4 1 7 28 41 41 Corruption Purged 1 | . . . . . . . . . . . 1 . . . . . . . . . Corruption Blocked . | . . . . . . . . . . . . . . . . . . . . . Effects 221 | . . . . . . 14 11 . 3 1 2 . . . 3 3 2 156 26 . Message Errors 48 | . . . . . . 3 5 . . . . . . . . 2 . 30 8 . Matter Fused 52 | . . . . . . 4 2 . 2 . . . . . 2 . . 37 5 . Heat Flow Errors 27 | . . . . . . 3 3 . . . . . . . . . . 17 4 . Energy Discharges 27 | . . . . . . 1 . . 1 . 1 . . . . 1 . 20 3 . Parts Rejected 3 | . . . . . . . . . . . . . . . 1 . . 2 . . Parts Fused 2 | . . . . . . 1 . . . . . . . . . . . 1 . . Data Loss (minor) 24 | . . . . . . . 1 . . 1 1 . . . . . 2 18 1 . Data Loss (major) 9 | . . . . . . . . . . . . . . . . . . 8 1 . Misfires 11 | . . . . . . 2 . . . . . . . . . . . 8 1 . Alerts 1 | . . . . . . . . . . . . . . . . . . 1 . . Misdirections 2 | . . . . . . . . . . . . . . . . . . 2 . . Weapon Failures 15 | . . . . . . . . . . . . . . . . . . 12 3 . Overload Shots . | . . . . . . . . . . . . . . . . . . . . . Overflow Damage 1768 | . 24 . . 2 17 34 . 385 288 . 78 . 136 192 102 234 . 276 . . Projectiles 168 | . 24 . . 2 . . . 41 . . . . . . . . . 101 . . Explosions 188 | . . . . . 17 34 . . . . . . . . 11 . . 126 . . Melee 1412 | . . . . . . . . 344 288 . 78 . 136 192 91 234 . 49 . . Knockbacks 16 | . . . . . . . . 8 3 . . . . . . . . 5 . . Impact 7 | . . . . . . . . 4 3 . . . . . . . . . . . Kinetic 5 | . . . . . . . . . . . . . . . . . . 5 . . Secondary 4 | . . . . . . . . 4 . . . . . . . . . . . . Self-Inflicted Damage 168 | . . . . . . 51 . . . . . . . . 27 . . 90 . . Shots 7 | . . . . . . 2 . . . . . . . . 1 . . 4 . . Rammed 2 | . . . . . 1 1 . . . . . . . . . . . . . . Targets Rammed 2 | . . . . . 1 1 . . . . . . . . . . . . . . Kicked . | . . . . . . . . . . . . . . . . . . . . . Crushed . | . . . . . . . . . . . . . . . . . . . . . Highest Temperature 444 | . 321 88 72 294 42 444 160 . 3 . . . . . 4 . . 333 329 . Average Temperature 92 | . 70 37 28 117 17 87 65 . 2 . . . . . 4 . . 103 153 . Received Heat Transfer 2150 | . 366 120 . 186 27 477 18 . 24 . . . . . 39 75 . 791 . 27 Effects 13 | . 3 . . 1 . 4 . . . . . . . . . . . 3 2 . Shutdowns 1 | . . . . . . . . . . . . . . . . . . 1 . . Energy Bleed 4 | . 1 . . 1 . 1 . . . . . . . . . . . 1 . . Interference 4 | . 2 . . . . 2 . . . . . . . . . . . . . . Matter Decay 1 | . . . . . . . . . . . . . . . . . . . 1 . Short Circuit 3 | . . . . . . 1 . . . . . . . . . . . 1 1 . Siege Activations 3 | . . . . . . . . . . . . . . . . . . 3 . . Total Turns 41 | . . . . . . . . . . . . . . . . . . 41 . . Longest Duration 33 | . . . . . . . . . . . . . . . . . . 33 . . Martial Activations . | . . . . . . . . . . . . . . . . . . . . . Shielding Activations . | . . . . . . . . . . . . . . . . . . . . . Robots Disrupted 1 | . . 1 . . . . . . . . . . . . . . . . . . Combat Hostiles 1 | . . 1 . . . . . . . . . . . . . . . . . . Robots Corrupted 13 | . . . . . . . . 8 1 . . . . . . . . 4 . . Combat Hostiles 3 | . . . . . . . . . . . . . . . . . . 3 . . Parts Fried 29 | . 3 . . 1 . . . 9 . . 3 . . . . . . 13 . . Impact Corruptions 34 | . . . . . . . . 20 10 . 1 . . . . 3 . . . . Robots Melted 1 | . . . . . . . . . . . . . . . . . . 1 . . Combat Hostiles 1 | . . . . . . . . . . . . . . . . . . 1 . . Parts Melted 4 | . . . . . . 3 . . . . . . . . . . . 1 . . Heat Transferred 5426 | 75 803 . . . 592 2672 . . . . . . . . . . . 1284 . . Parts Sabotaged . | . . . . . . . . . . . . . . . . . . . . . Parts Stolen . | . . . . . . . . . . . . . . . . . . . . . Parts Stripped . | . . . . . . . . . . . . . . . . . . . . . Power Chain Reactions . | . . . . . . . . . . . . . . . . . . . . . Alert | -11 -10 -10 -10 -9 -8 -8 -8 -8 -6 -6 -6 -6 -6 -6 -6 -5 -5 -5 -5 -5 ------- Run | Yrd Mat Min Exi Min Mat Sto Rec Scr Fac Was Fac Ext Cet Arc Hub Fac Was Fac Upp Upp Maximum Alert Level 4 | . . . . . . 3 1 . . . . 2 2 1 4 3 1 2 . . Low Security (%) 65 | 100 100 100 . 100 100 15 79 . 100 100 100 76 . 94 17 . . 26 . . Level 1 14 | . . . . . . 14 20 . . . . 15 98 5 7 . 100 49 . . Level 2 9 | . . . . . . 38 . . . . . 7 1 . 4 . . 23 . . Level 3 10 | . . . . . . 31 . . . . . . . . 56 100 . . . . Level 4 . | . . . . . . . . . . . . . . . 13 . . . . . Level 5 . | . . . . . . . . . . . . . . . . . . . . . High Security . | . . . . . . . . . . . . . . . . . . . . . Max Security . | . . . . . . . . . . . . . . . . . . . . . Peak Influence 1567 | 5 137 60 . 156 154 959 362 . 54 . 43 528 400 303 1567 1014 351 557 . . Initial 765 | . . 40 . . 48 13 336 . . . . . 287 120 . 765 351 203 . . Average 222 | . 52 7 . 29 99 568 149 . 12 . 3 140 351 22 737 857 323 305 . . Influence Increases 9751 | 10 439 145 . 358 301 1744 315 . 257 . 81 881 353 253 2670 633 . 1221 90 . Destroy 0b10 Robot/C 3720 | . 260 100 . 160 180 1080 120 . 100 . . 400 160 80 600 40 . 360 80 . Destroy 0b10 Robot/NC 515 | 10 30 10 . . 30 140 20 . 20 . 10 5 10 45 50 40 . 95 . . Destroy Leader 798 | . 76 20 . 10 58 276 . . 50 . 2 32 . . 170 12 . 82 10 . Allied During Kill 1243 | . . . . 8 6 43 . . 7 . . 347 170 125 537 . . . . . Trap Triggered on 0b10 20 | . . . . . . . . . 10 . . . . . . . . 10 . . Successful Hack 528 | . 42 . . . 14 18 24 . 28 . 62 23 7 . 98 . . 212 . . Select Force Hacks 170 | . . . . . . . 120 . . . . . . . 50 . . . . . Disable Machine 990 | . 15 . . 180 . 60 30 . 15 . . 15 . . 465 . . 210 . . Destroy Structure 687 | . 1 . . . 13 97 1 . 12 . 7 29 6 3 280 16 . 222 . . Partial Spotted 135 | . . . . . . . . . . . . 30 . . 90 15 . . . . Lose Combat Pursuer 945 | . 15 15 . . . 30 . . 15 . . . . . 330 510 . 30 . . Influence Decreases 9599 | 10 334 250 . 234 392 914 1112 66 255 2 80 369 564 555 1107 1192 713 969 431 50 Entered New Map 2945 | . . 65 . . 76 20 527 66 . 2 . 1 226 182 . 798 653 88 201 40 Time Decay 5134 | 10 334 155 . 234 286 704 565 . 236 . 80 312 198 333 482 294 30 691 190 . Lost Part 555 | . . 30 . . 10 10 20 . 5 . . . . . 110 100 30 190 40 10 Lost Ally 671 | . . . . . 20 180 . . 14 . . 40 140 40 237 . . . . . Purge Threat 294 | . . . . . . . . . . . . 16 . . 278 . . . . . Squads Dispatched 60 | . 3 . . . 1 12 . . 2 . 4 3 . . 16 10 . 9 . . Investigation 9 | . 1 . . . . 1 . . . . 2 3 . . 2 . . . . . Extermination 13 | . . . . . . . . . 2 . 2 . . . 3 1 . 5 . . Reinforcement 24 | . 2 . . . 1 3 . . . . . . . . 8 6 . 4 . . Assault 11 | . . . . . . 5 . . . . . . . . 3 3 . . . . Garrison 3 | . . . . . . 3 . . . . . . . . . . . . . . Intercept . | . . . . . . . . . . . . . . . . . . . . . Searches Triggered . | . . . . . . . . . . . . . . . . . . . . . Unchained Authorized 1 | . . . . . . . . . . . . . . . . . . 1 . . Construction Impeded 6 | . . . . . . 1 . . . . . . . . 1 1 . 3 . . Haulers Reinforced 3 | . . . . . . . . . . . . . . . 1 1 . 1 . . Active Scanning Responses . | . . . . . . . . . . . . . . . . . . . . . Cargo Convoy Interrupts 1 | . . . . . . . . . 1 . . . . . . . . . . . Stealth | -11 -10 -10 -10 -9 -8 -8 -8 -8 -6 -6 -6 -6 -6 -6 -6 -5 -5 -5 -5 -5 --------- Run | Yrd Mat Min Exi Min Mat Sto Rec Scr Fac Was Fac Ext Cet Arc Hub Fac Was Fac Upp Upp Distress Signals 17 | . 2 . . . 1 4 . . 1 . . 3 2 . 2 2 . . . . Communications Jammed . | . . . . . . . . . . . . . . . . . . . . . Distress Signals . | . . . . . . . . . . . . . . . . . . . . . Times Spotted 318 | . 23 12 4 9 12 71 4 . 5 . . 13 6 1 50 48 5 48 4 3 Peak Tracking Total 15 | . 4 3 9 3 4 9 2 . 2 . . 2 5 . 12 15 5 6 4 3 Tactical Retreats 27 | . 1 3 . . . 2 . . 1 . . . . . 8 10 . 2 . . Traps | -11 -10 -10 -10 -9 -8 -8 -8 -8 -6 -6 -6 -6 -6 -6 -6 -5 -5 -5 -5 -5 ------- Run | Yrd Mat Min Exi Min Mat Sto Rec Scr Fac Was Fac Ext Cet Arc Hub Fac Was Fac Upp Upp Traps Triggered 15 | . . . . . . . . . 1 . 2 3 . . 1 2 . 6 . . Indirectly 1 | . . . . . . . . . . . . . . . 1 . . . . . Trap Hack Attempts 2 | . . . . . . . . . . . . 2 . . . . . . . . Triggered . | . . . . . . . . . . . . . . . . . . . . . Disarmed . | . . . . . . . . . . . . . . . . . . . . . Reprogrammed 10 | . . . . . . . . . . . . . . . 4 . . 6 . . Reused 2 | . . . . . . . . . 1 . . . . . . . . 1 . . Traps Extracted 4 | . . . . . . . . . . . . . . . 4 . . . . . Installed 2 | . . . . . . 1 . . 1 . . . . . . . . . . . Triggered 2 | . . . . . . . . . 1 . . . . . . . . 1 . . Most Traps Carried 4 | . . 3 3 3 3 3 1 1 1 . . . . . 4 4 4 4 4 4 Objects Rigged 3 | . . . . . . . . . . . . . . . 3 . . . . . Exploded 2 | . . . . . . . . . . . . . . . 2 . . . . . Machines | -11 -10 -10 -10 -9 -8 -8 -8 -8 -6 -6 -6 -6 -6 -6 -6 -5 -5 -5 -5 -5 ---------- Run | Yrd Mat Min Exi Min Mat Sto Rec Scr Fac Was Fac Ext Cet Arc Hub Fac Was Fac Upp Upp Machines Disabled 73 | . 1 . 4 12 . 4 2 . 1 . . 4 . . 31 . . 14 . . Max in Single Turn 13 | . 1 . 1 1 . 1 1 . 1 . . 1 . . 13 . . 5 . . Garrison Access 3 | . . . . . . 1 . . . . . . . . 1 1 . . . . Network Hub 4 | . . . . . . . . . . . . . . . 4 . . . . . Machines Repaired . | . . . . . . . . . . . . . . . . . . . . . Machines Dismantled . | . . . . . . . . . . . . . . . . . . . . . Machines Sabotaged 1 | . . . . . . . . . . . . . . . 1 . . . . . Overloaded Fab Kills . | . . . . . . . . . . . . . . . . . . . . . Hacking | -11 -10 -10 -10 -9 -8 -8 -8 -8 -6 -6 -6 -6 -6 -6 -6 -5 -5 -5 -5 -5 --------- Run | Yrd Mat Min Exi Min Mat Sto Rec Scr Fac Was Fac Ext Cet Arc Hub Fac Was Fac Upp Upp Machines Accessed 106 | . 8 . 2 . 3 14 10 . 8 . 13 16 1 . 15 3 . 12 1 . Terminals 69 | . 6 . . . 2 9 6 . 4 . 5 15 1 . 14 1 . 6 . . Fabricators 4 | . . . . . . . . . . . 3 . . . . 1 . . . . Repair Stations 10 | . 1 . . . 1 2 . . 1 . 1 1 . . . . . 3 . . Recycling Units 15 | . 1 . . . . 2 4 . 2 . 3 . . . . . . 3 . . Scanalyzers 2 | . . . . . . . . . 1 . 1 . . . . . . . . . Garrison Access 3 | . . . . . . 1 . . . . . . . . 1 1 . . . . Total Hacks 351 | . 26 . 24 . 11 35 29 . 23 . 37 36 4 . 42 8 . 75 1 . Successful 198 | . 13 . 24 . 7 22 25 . 14 . 26 17 1 . 18 3 . 27 1 . Failed 152 | . 13 . . . 4 13 3 . 9 . 11 19 3 . 24 5 . 48 . . Catastrophic 21 | . 1 . . . . . . . . . 1 2 . . 6 . . 11 . . Database Lockouts 1 | . . . . . . . 1 . . . . . . . . . . . . . Manual 151 | . 11 . 1 . 7 21 17 . 12 . 14 6 1 . 29 3 . 29 . . Terminals 209 | . 19 . . . 9 20 21 . 10 . 15 30 4 . 41 3 . 37 . . Fabricators 10 | . . . . . . . . . . . 6 . . . . 4 . . . . Repair Stations 41 | . 5 . . . 2 3 . . 3 . 4 6 . . . . . 18 . . Recycling Units 57 | . 2 . . . . 11 8 . 8 . 8 . . . . . . 20 . . Scanalyzers 6 | . . . . . . . . . 2 . 4 . . . . . . . . . Garrison Access 3 | . . . . . . 1 . . . . . . . . 1 1 . . . . Terminal Hacks 79 | . 3 . 24 . 2 7 10 . 2 . 5 9 1 . 7 . . 8 1 . Record 23 | . . . 23 . . . . . . . . . . . . . . . . . Part Schematic 3 | . . . . . . 1 2 . . . . . . . . . . . . . Robot Schematic 2 | . . . . . . . 2 . . . . . . . . . . . . . Robot Analysis 2 | . 1 . . . . 1 . . . . . . . . . . . . . . Prototype ID Bank 6 | . 1 . . . . 1 4 . . . . . . . . . . . . . Open Door 14 | . . . . . . 3 . . 1 . . 8 1 . . . . . 1 . Branch Access Points 2 | . . . . . 1 . . . . . . . . . . . . 1 . . Terminal Index 3 | . . . . . . 1 1 . . . . . . . . . . 1 . . Scanalyzer Index 1 | . . . . . . . . . . . 1 . . . . . . . . . Unreport Threat 3 | . . . . . . . . . . . . 1 . . 2 . . . . . Locate Traps 7 | . 1 . . . 1 . . . . . 2 . . . 1 . . 2 . . Reprogram Traps 2 | . . . . . . . . . . . . . . . 1 . . 1 . . Recall Investigation 1 | . . . . . . . . . . . . . . . 1 . . . . . Registered Components 3 | . . . . . . . . . 1 . 1 . . . . . . 1 . . Zone Layout 6 | . . . . . . . 1 . . . 1 . . . 2 . . 2 . . Proto ID Catalog 1 | . . . 1 . . . . . . . . . . . . . . . . . Fabricator Hacks 3 | . . . . . . . . . . . 2 . . . . 1 . . . . Network Status 1 | . . . . . . . . . . . 1 . . . . . . . . . Load Schematic 1 | . . . . . . . . . . . 1 . . . . . . . . . Build 1 | . . . . . . . . . . . . . . . . 1 . . . . Repair Station Hacks 27 | . 3 . . . 2 . . . 2 . 4 6 . . . . . 10 . . Scan Component 15 | . 2 . . . 1 . . . 1 . 2 3 . . . . . 6 . . Repair 12 | . 1 . . . 1 . . . 1 . 2 3 . . . . . 4 . . Recycling Unit Hacks 15 | . 1 . . . . 3 4 . 2 . 2 . . . . . . 3 . . Report Inventory 9 | . . . . . . 2 4 . 1 . 2 . . . . . . . . . Retrieve Components 6 | . 1 . . . . 1 . . 1 . . . . . . . . 3 . . Scanalyzer 4 | . . . . . . . . . . . 4 . . . . . . . . . Insert Component 1 | . . . . . . . . . . . 1 . . . . . . . . . Analyze 3 | . . . . . . . . . . . 3 . . . . . . . . . Garrison Access Hacks 3 | . . . . . . 1 . . . . . . . . 1 1 . . . . Seal Access 3 | . . . . . . 1 . . . . . . . . 1 1 . . . . Unauthorized Hacks 67 | . 6 . . . 3 11 11 . 8 . 9 2 . . 10 1 . 6 . . Terminals 49 | . 6 . . . 3 8 7 . 4 . 5 2 . . 10 1 . 3 . . Track 2 | . . . . . . . . . . . . . . . 1 1 . . . . Botnet 13 | . 1 . . . 1 2 2 . 1 . 2 1 . . 2 . . 1 . . Detonate 4 | . . . . . . . . . . . . . . . 4 . . . . . Operators 1 | . . . . . . . . . . . . . . . 1 . . . . . Skim 27 | . 5 . . . 2 6 5 . 3 . 3 1 . . . . . 2 . . Sabotage 2 | . . . . . . . . . . . . . . . 2 . . . . . Fabricators 1 | . . . . . . . . . . . 1 . . . . . . . . . Recompile 1 | . . . . . . . . . . . 1 . . . . . . . . . Repair Stations . | . . . . . . . . . . . . . . . . . . . . . Recycling Units 17 | . . . . . . 3 4 . 4 . 3 . . . . . . 3 . . Monitor 1 | . . . . . . . . . 1 . . . . . . . . . . . Reject 2 | . . . . . . 1 . . 1 . . . . . . . . . . . Recyclers 6 | . . . . . . 1 . . 1 . 2 . . . . . . 2 . . Mask 4 | . . . . . . 1 . . 1 . 1 . . . . . . 1 . . Tunnel 4 | . . . . . . . 4 . . . . . . . . . . . . . Scanalyzers . | . . . . . . . . . . . . . . . . . . . . . Garrison Access . | . . . . . . . . . . . . . . . . . . . . . Data Cores Recovered 3 | . . . . . . 1 . . . . . . . . 2 . . . . . Used 2 | . . . . . . . . . . . . . . . 2 . . . . . Hacking Detections 82 | . 8 . . . 3 10 6 . 6 . 12 11 2 . 12 2 . 10 . . Full Trace Events 4 | . 1 . . . . 1 . . . . 1 1 . . . . . . . . Feedback Events 1 | . . . . . . 1 . . . . . . . . . . . . . . Corruption 1 | . . . . . . 1 . . . . . . . . . . . . . . Feedback Blocked . | . . . . . . . . . . . . . . . . . . . . . Robot Schematics Acquired 2 | . . . . . . . 2 . . . . . . . . . . . . . Robots Built . | . . . . . . . . . . . . . . . . . . . . . Authchips . | . . . . . . . . . . . . . . . . . . . . . Time . | . . . . . . . . . . . . . . . . . . . . . Total Robot Build Rating . | . . . . . . . . . . . . . . . . . . . . . Part Schematics Acquired 4 | . . . . . . 1 2 . . . 1 . . . . . . . . . Parts Built 2 | . . . . . . . . . . . . . . . . 2 . . . . Authchips . | . . . . . . . . . . . . . . . . . . . . . Time 53 | . . . . . . . . . . . . . . . . 53 . . . . Total Part Build Rating 12 | . . . . . . . . . . . . . . . . 12 . . . . Part Studies Acquired . | . . . . . . . . . . . . . . . . . . . . . Parts Repaired 11 | . 1 . . . 1 . . . 1 . 2 3 . . . . . 3 . . Time 669 | . 26 . . . 38 . . . 54 . 186 182 . . . . . 183 . . Parts Recycled . | . . . . . . . . . . . . . . . . . . . . . Recycled Matter . | . . . . . . . . . . . . . . . . . . . . . Retrieved Matter . | . . . . . . . . . . . . . . . . . . . . . Retrieved Components 18 | . 3 . . . . 9 . . 2 . . . . . . . . 4 . . Parts Scanalyzed 1 | . . . . . . . . . . . 1 . . . . . . . . . Part Schematics Acquired 1 | . . . . . . . . . . . 1 . . . . . . . . . Parts Damaged . | . . . . . . . . . . . . . . . . . . . . . Bothacking | -11 -10 -10 -10 -9 -8 -8 -8 -8 -6 -6 -6 -6 -6 -6 -6 -5 -5 -5 -5 -5 ------------ Run | Yrd Mat Min Exi Min Mat Sto Rec Scr Fac Was Fac Ext Cet Arc Hub Fac Was Fac Upp Upp Used RIF Installer . | . . . . . . . . . . . . . . . . . . . . . Robots Hacked 6 | . . . . . . . 2 . 1 . . 1 1 . . 1 . . . . Non-combat 3 | . . . . . . . 1 . 1 . . . . . . 1 . . . . Combat 3 | . . . . . . . 1 . . . . 1 1 . . . . . . . Robot Hacks Applied 6 | . . . . . . . 2 . 1 . . 1 1 . . 1 . . . . parse_system 4 | . . . . . . . 2 . . . . 1 1 . . . . . . . find_chute 2 | . . . . . . . . . 1 . . . . . . 1 . . . . Relay Couplers Released . | . . . . . . . . . . . . . . . . . . . . . Fabnet Peak Effective % . | . . . . . . . . . . . . . . . . . . . . . Robots Rewired 29 | . . . . . . . 10 . . . . 19 . . . . . . . . Allies Hacked . | . . . . . . . . . . . . . . . . . . . . . Hacks Repelled . | . . . . . . . . . . . . . . . . . . . . . Allies | -11 -10 -10 -10 -9 -8 -8 -8 -8 -6 -6 -6 -6 -6 -6 -6 -5 -5 -5 -5 -5 -------- Run | Yrd Mat Min Exi Min Mat Sto Rec Scr Fac Was Fac Ext Cet Arc Hub Fac Was Fac Upp Upp Total Allies 60 | . . . . 2 . 12 10 . . . . 31 5 . . . . . . . Largest Group 29 | . . . . 2 1 10 10 10 . . . 29 28 20 18 . . . . . Highest-Rated Group 1245 | . . . . 45 14 173 152 152 . . . 959 1245 839 795 . . . . . Highest-Rated Ally 159 | . . . . 31 14 31 27 27 . . . 159 153 96 96 . . . . . Total Orders 25 | . . . . . . . 4 20 . . . . . . 1 . . . . . STAY 14 | . . . . . . . 2 11 . . . . . . 1 . . . . . FOLLOW 11 | . . . . . . . 2 9 . . . . . . . . . . . . Ally Attacks 422 | . . . . 5 1 43 . . 7 . . 96 83 22 165 . . . . . Total Damage 10104 | . . . . 61 16 576 . . 388 . . 1980 2133 595 4355 . . . . . Kills 75 | . . . . 1 1 2 . . . . . 19 12 4 36 . . . . . Allies Corrupted 9 | . . . . 1 . . . 7 . . . . . . 1 . . . . . Allies Melted 2 | . . . . . . . . . . . . 1 . . 1 . . . . . Turrets Deployed 3 | . . . . . . . . . 2 . . . . . 1 . . . . . Intel | -11 -10 -10 -10 -9 -8 -8 -8 -8 -6 -6 -6 -6 -6 -6 -6 -5 -5 -5 -5 -5 ------- Run | Yrd Mat Min Exi Min Mat Sto Rec Scr Fac Was Fac Ext Cet Arc Hub Fac Was Fac Upp Upp Active Infowar (turns) 8918 | 13 257 . . . . . . 670 1255 82 577 1032 370 152 1097 614 . 2399 399 1 Optics 1230 | . . . . . . . . . . . . . . . . . . 830 399 1 Sensors 7837 | . . . . . . . . 670 1125 82 577 1032 370 152 1097 614 . 2070 48 . Terrain 68 | . . . . . . . . . . . . . . . . 68 . . . . Structural 492 | . . . . . . . . . . . . . . . . 229 . . 262 1 Seismic 270 | 13 257 . . . . . . . . . . . . . . . . . . . Jamming 130 | . . . . . . . . . 130 . . . . . . . . . . . Robot Analysis Total 2 | . 1 . . . . 1 . . . . . . . . . . . . . . Derelict Logs Recovered 8 | . . 2 . 3 . . . . . . . . . . . . . . 3 . Drone Launches . | . . . . . . . . . . . . . . . . . . . . . Drone Recoveries . | . . . . . . . . . . . . . . . . . . . . . Exploration | -11 -10 -10 -10 -9 -8 -8 -8 -8 -6 -6 -6 -6 -6 -6 -6 -5 -5 -5 -5 -5 ------------- Run | Yrd Mat Min Exi Min Mat Sto Rec Scr Fac Was Fac Ext Cet Arc Hub Fac Was Fac Upp Upp Turns Passed 26352 | 93 1181 1027 595 1286 624 3072 1694 3082 1295 82 589 1075 404 5087 1243 655 61 2807 399 1 Spaces Moved 14456 | 43 546 453 358 578 250 1109 644 1423 884 259 776 1496 276 807 1609 922 103 1390 529 1 Core 903 | 1 . . . . . . . . . . . . . 614 1 1 101 185 . . Treads 6056 | 42 546 453 358 578 250 1109 644 1112 . . . . . . . . 2 962 . . Legs . | . . . . . . . . . . . . . . . . . . . . . Wheels 893 | . . . . . . . . 311 474 . . . . . . . . 98 10 . Hover 445 | . . . . . . . . . . . . . . . . 300 . 145 . . Flight 6159 | . . . . . . . . . 410 259 776 1496 276 193 1608 621 . . 519 1 Fastest Speed 22 | 50 160 160 160 160 160 163 240 145 23 29 24 24 24 24 22 27 50 50 30 30 Average Speed 139 | 157 160 160 160 160 172 230 243 202 91 29 29 24 25 614 25 34 51 147 33 30 Slowest Speed 1350 | 160 160 160 160 160 245 245 320 240 163 29 99 24 98 800 93 50 145 1350 155 30 Overloaded Moves 23 | . . . . . . . . . . . . . . . 1 22 . . . . Propulsion Burnouts . | . . . . . . . . . . . . . . . . . . . . . Robots Hopped 22 | . . . . . . . . . . . 2 9 . . 9 2 . . . . Potential Cave-ins 2 | . . . . . . . . . . . . . . . . . . 2 . . Cave-ins Triggered . | . . . . . . . . . . . . . . . . . . . . . Exploration Rate (%) 61 | 4 86 81 69 99 30 97 98 54 17 91 18 87 66 89 93 22 83 31 75 3 Regions Visited 20 Branch Regions 12 Pre-discovered Areas 11 | . . . 1 1 . 3 5 . . . . . . . . . . . 1 . Known Exits Taken 11 | . . 1 1 . 1 . 1 1 . . 1 1 1 1 1 . . 1 . . Unknown Exits Taken 5 | 1 1 . . 1 . 1 . . . . . . . . . . . . 1 . Scrap Searched 8 | . . 1 . 1 . . . 3 . . . . . . . . . . 3 . Spaces Dug 116 | . . . . . . 1 . . 12 . 7 10 . . 17 8 . 56 5 . Terrain Destroyed 670 | . . . . . 13 115 . . 12 . 7 18 . . 339 8 . 137 21 . Melee 59 | . . . . . . 1 . . 12 . 7 10 . . 17 8 . 2 2 . Projectile 37 | . . . . . . . . . . . . . . . . . . 18 19 . AOE 574 | . . . . . 13 114 . . . . . 8 . . 322 . . 117 . . Terrain Rammed . | . . . . . . . . . . . . . . . . . . . . . Walls Destroyed . | . . . . . . . . . . . . . . . . . . . . . Machines Disabled . | . . . . . . . . . . . . . . . . . . . . . Actions | -11 -10 -10 -10 -9 -8 -8 -8 -8 -6 -6 -6 -6 -6 -6 -6 -5 -5 -5 -5 -5 --------- Run | Yrd Mat Min Exi Min Mat Sto Rec Scr Fac Was Fac Ext Cet Arc Hub Fac Was Fac Upp Upp Total 19550 | 57 707 705 370 851 381 1452 760 1606 1298 265 1119 2171 578 913 2373 1182 109 1938 714 1 Wait 3659 | 1 54 207 4 206 59 130 62 119 292 . 306 561 255 89 716 200 . 273 125 . Move 14403 | 42 545 452 357 577 249 1108 643 1422 884 258 771 1479 275 806 1597 918 102 1389 528 1 Hop 13 | . . . . . . . . . . . 2 7 . . 2 2 . . . . Pick Up 173 | 3 13 3 4 5 11 14 5 30 17 2 9 5 2 2 2 1 2 37 6 . Fast Attach 127 | 7 2 . . . 1 10 1 6 8 1 9 6 9 . 5 14 2 42 4 . Attach 57 | . . 4 . . 7 1 2 1 9 1 . 1 1 . 3 1 2 18 6 . Detach 14 | . . . . . . . 3 . 1 . . 1 1 . . 1 . 3 4 . Swap 114 | . 9 2 . 7 14 26 6 2 14 1 3 4 1 3 2 . . 20 . . Drop 188 | . 9 . . 9 12 34 2 15 20 2 9 5 12 3 5 4 1 31 15 . Fire 476 | 4 75 25 5 47 27 126 15 . 13 . . 2 . . 3 1 . 109 24 . Melee 258 | . . . . . . 1 16 11 39 . 10 53 22 10 38 40 . 16 2 . Ram . | . . . . . . . . . . . . . . . . . . . . . Kick . | . . . . . . . . . . . . . . . . . . . . . Crush 2 | . . . . . 1 1 . . . . . . . . . . . . . . Escape Stasis 45 | . . . . . . . . . . . . 45 . . . . . . . . Rewire 17 | . . 12 . . . . 5 . . . . . . . . . . . . . Trap 4 | . . . . . . 1 . . 1 . . 2 . . . . . . . . Miscellaneous . | . . . . . . . . . . . . . . . . . . . . . Route ------- -11/Scrapyard -10/Materials (discovered 6 exits: *Mat x3 / [*Min x2] / Sub) -10/Mines (discovered 4 exits: *Mat x2 / *Exi / Sub) -10/Exiles (discovered 2 exits: *Min x2) -9/Mines (discovered 2 exits: *Mat x2) -8/Materials (discovered 2 exits: *Sto x2) -8/Storage (discovered 2 exits: [*Fac] / *Rec) -8/Recycling (discovered 2 exits: *Fac / *Scr) -8/Scraptown -6/Factory -6/Waste -6/Factory -6/Extension (discovered 2 exits: *Fac / *Cet) -6/Cetus (discovered 2 exits: *Fac / *Arc) -6/Archives (discovered 3 exits: *Fac / *Hub x2) -6/Hub_04(d) (discovered 4 exits: *Fac x4) -5/Factory -5/Waste -5/Factory (discovered 3 exits: *Fac / *Upp x2) -5/Upper Caves -5/Upper Caves History --------- Turn | Location | Event 40 | -11/Scrapyard | Discovered new exit (range 16) 94 | -11/Scrapyard | Entered Materials 271 | -10/Materials | Discovered new exit (range 10) 305 | -10/Materials | Build established: Mutant 394 | -10/Materials | Discovered new exit (range 16) 591 | -10/Materials | Discovered new exit (range 8) 672 | -10/Materials | Repaired Lgt. Treads 768 | -10/Materials | Discovered new exit (range 11) 851 | -10/Materials | Identified exit to Materials 1005 | -10/Materials | Learned 4 Subcaves zone layouts 1066 | -10/Materials | Learned 2 Mines zone layouts 1116 | -10/Materials | Learned location of 2 exits from Mines 1175 | -10/Materials | Identified exit to Subcaves 1275 | -10/Materials | Entered Mines 1277 | -10/Mines | Identified exit to Exiles 1400 | -10/Mines | Learned location of 1 exit from Materials 1424 | -10/Mines | Learned Materials garrison access intel 1583 | -10/Mines | Assembled infested the area 1588 | -10/Mines | Assisted by a Guerilla fighting off Assembled 2060 | -10/Mines | Core integrity fell below 50% 2103 | -10/Mines | Found a hidden stash of uninstalled traps 2295 | -10/Mines | Deemed a non-threat by the Exiles lab entrance 2302 | -10/Mines | Entered Exiles 2303 | -10/Exiles | Identified exit to Mines 2346 | -10/Exiles | Met 8R-AWN 2368 | -10/Exiles | Met EX-HEX 2427 | -10/Exiles | Met EX-DEC 2456 | -10/Exiles | Learned location of Zion (-6) 2494 | -10/Exiles | Met EX-BIN 2566 | -10/Exiles | Aligned with FarCom system 2568 | -10/Exiles | Given EX-Vault access code 2606 | -10/Exiles | Opened EX-Vault 2616 | -10/Exiles | Found Chronowheel 2620 | -10/Exiles | Found Deploy-a-Sentry 2623 | -10/Exiles | Found Deploy-a-Sentry 2625 | -10/Exiles | Found Deploy-a-Sentry 2657 | -10/Exiles | Warned to stay clear of 0b10 Research branches 2851 | -10/Exiles | Attacked by the Exiles 2897 | -10/Exiles | Stole two prototypes: Chronowheel, Deploy-a-Sentry 2897 | -10/Exiles | Entered Mines 2913 | -9/Mines | Learned location of 1 exit from Proximity Caves 3091 | -9/Mines | Discovered new exit (range 14) 3172 | -9/Mines | Learned Materials emergency access door positions 3354 | -9/Mines | Excavation squad dispatched 3354 | -9/Mines | A large section of the Mines collapsed 3605 | -9/Mines | Core integrity fell below 20% 3614 | -9/Mines | Discovered new exit (range 7) 3646 | -9/Mines | Received a Rocket Launcher from a helpful Derelict 3809 | -9/Mines | Found a damaged Exp. Sensor Array with a note attached 3813 | -9/Mines | Found Prototype Device 4183 | -9/Mines | Entered Materials 4183 | -8/Materials | Accompanied by 1 ally 4183 | -8/Materials | Evolved 4 slots: Propulsion x1, Utility x1, Weapon x2 4184 | -8/Materials | Identified exit to Storage 4186 | -8/Materials | Loaded intel: 1 garrison access location 4475 | -8/Materials | Build established: Scavenger-Tank 4663 | -8/Materials | Repaired Pulse Rifle 4807 | -8/Materials | Entered Storage 5113 | -8/Storage | Garrison activated, responded to threat 5195 | -8/Storage | Used back door to open Recycling access 5195 | -8/Storage | Discovered new exit (range 5) 5493 | -8/Storage | Learned location of Armory (-3) 5632 | -8/Storage | Discovered new exit (range 8) 6091 | -8/Storage | Met a pair of Derelict thieves 6167 | -8/Storage | Destroyed 9 combat bots 6681 | -8/Storage | Build established: Scavenger-Gunner 6807 | -8/Storage | First assault squad dispatched 7226 | -8/Storage | Learned location of Lower Caves (-6) 7279 | -8/Storage | Learned location of Recycling (-8) 7322 | -8/Storage | Learned location of 1 exit from Recycling 7400 | -8/Storage | Learned location of 1 exit from Recycling 7454 | -8/Storage | Learned Factory non-interactive machine intel 7555 | -8/Storage | Assisted by bots powering up and referring to "LRC-V3" 7656 | -8/Storage | Lost 10 allies 7879 | -8/Storage | Entered Recycling 7880 | -8/Recycling | Identified exit to Factory 7881 | -8/Recycling | Identified exit to Scraptown 8241 | -8/Recycling | Build established: Commander-Tank 8855 | -8/Recycling | Learned location of 1 exit from Lower Caves 8892 | -8/Recycling | Learned Factory emergency access door positions 8936 | -8/Recycling | Learned Storage emergency access door positions 8942 | -8/Recycling | Learned Factory recycling unit intel 8969 | -8/Recycling | Learned location of 1 exit from Lower Caves 8998 | -8/Recycling | Learned Factory stockpile data 9498 | -8/Recycling | Scanned before Scraplab entrance 9533 | -8/Recycling | Entered Scraplab 9573 | -8/Recycling | Entered Scraptown 9573 | -8/Scraptown | Accompanied by 10 allies 9573 | -8/Scraptown | System corruption cleaned by C-Scrubber 9706 | -8/Scraptown | Build established: Commander-Mutant 9888 | -8/Scraptown | Visited Awakened 9921 | -8/Scraptown | Visited Symbiants 9972 | -8/Scraptown | Visited Fellowship of the Rings 10022 | -8/Scraptown | Visited Cyclists 10041 | -8/Scraptown | Visited Cave Peace 10130 | -8/Scraptown | Turned away by UFD registrar 11813 | -8/Scraptown | Found PL-3XN's Ring of Power 11952 | -8/Scraptown | Build established: Scavenger-Mutant 11963 | -8/Scraptown | Visited CPS Storage 11972 | -8/Scraptown | Identified Exp. Sensor Array 12435 | -8/Scraptown | Build established: Mutant 12645 | -8/Scraptown | System corruption cleaned by C-Scrubber 12655 | -8/Scraptown | Entered Factory 12655 | -6/Factory | Evolved 4 slots: Propulsion x2, Utility x2 12658 | -6/Factory | Loaded intel: 229 non-interactive machine locations 12659 | -6/Factory | Loaded intel: 8 recycling unit locations 12915 | -6/Factory | Discovered new exit (range 6) 13318 | -6/Factory | Repaired Exp. Sensor Array 13506 | -6/Factory | Attached CPS modules to R-10 Processor. 13618 | -6/Factory | DAS Turret deployed 13622 | -6/Factory | DAS Turret deployed 13841 | -6/Factory | Cargo convoy interrupted 13950 | -6/Factory | Sucked down chute 13950 | -6/Factory | Entered Waste 13950 | -6/Waste | The area was eerily silent 14009 | -6/Waste | Discovered new exit (range 12) 14032 | -6/Waste | Identified exit to Factory 14032 | -6/Waste | Entered Factory 14256 | -6/Factory | Repaired Micro-nuke Launcher? 14461 | -6/Factory | Repaired Broken Diametric Drive 14535 | -6/Factory | Build established: Sprinter 14600 | -6/Factory | Discovered new exit (range 15) 14620 | -6/Factory | Identified exit to Extension 14621 | -6/Factory | Entered Extension 14636 | -6/Extension | Warlord forces began an assault 14712 | -6/Extension | Spotted B-75 Beast 14795 | -6/Extension | Spotted B-75 Beast 14856 | -6/Extension | Lost 3 allies 14909 | -6/Extension | Rescued A7 14948 | -6/Extension | Rescued a captive Derelict 14948 | -6/Extension | Rescued a captive Derelict 14950 | -6/Extension | Rescued a captive Derelict 14959 | -6/Extension | Rescued a captive Derelict 15055 | -6/Extension | Rescued a captive Derelict 15056 | -6/Extension | Rescued a captive Derelict 15068 | -6/Extension | Attached CPS modules to A7. 15163 | -6/Extension | Rescued a captive Derelict 15163 | -6/Extension | Rescued a captive Derelict 15167 | -6/Extension | Discovered new exit (range 10) 15168 | -6/Extension | Discovered new exit (range 6) 15299 | -6/Extension | Repaired Phasing Sabre 15306 | -6/Extension | Rescued a captive Derelict 15310 | -6/Extension | Rescued a captive Derelict 15322 | -6/Extension | Rescued a captive Derelict 15340 | -6/Extension | Build established: Commander-Sprinter 15356 | -6/Extension | Repaired Phasing Sabre? 15433 | -6/Extension | Repaired Enh. Nuclear Core 15609 | -6/Extension | Disrupted transfer network 15628 | -6/Extension | Identified exit to Cetus 15661 | -6/Extension | Identified exit to Factory 15696 | -6/Extension | Entered Cetus 15696 | -6/Cetus | Accompanied by 25 allies (A7) 15701 | -6/Cetus | Acquired a Cetus Manufacturing Module code from A7 15715 | -6/Cetus | Spotted Cetus Guard 15771 | -6/Cetus | Started Cetus Manufacturing Module 15790 | -6/Cetus | Escorted A7 to Cetus Mainframe 15796 | -6/Cetus | Manufactured an Enhanced Grunt 15796 | -6/Cetus | Discovered new exit (range 15) 15821 | -6/Cetus | Manufactured an Enhanced Grunt 15846 | -6/Cetus | Manufactured an Enhanced Grunt 15871 | -6/Cetus | Manufactured an Enhanced Grunt 15885 | -6/Cetus | Spotted Cetus Guard 15885 | -6/Cetus | Spotted Cetus Guard 15892 | -6/Cetus | Spotted Cetus Guard 15892 | -6/Cetus | Spotted Cetus Guard 15896 | -6/Cetus | Manufactured an Enhanced Grunt 15904 | -6/Cetus | Allies destroyed Cetus Guard 15905 | -6/Cetus | Allies destroyed Cetus Guard 15914 | -6/Cetus | Allies destroyed Cetus Guard 15916 | -6/Cetus | Allies destroyed Cetus Guard 15921 | -6/Cetus | Discovered exit to Factory (range 15) 15923 | -6/Cetus | Met Revision 17 15942 | -6/Cetus | Lost 7 allies 16054 | -6/Cetus | Murdered A7 16062 | -6/Cetus | Extracted ID and sensor layout for unrecognized location from A7's data core 16063 | -6/Cetus | Found Med. Regenerative Plating 16067 | -6/Cetus | Identified exit to Archives 16100 | -6/Cetus | Entered Archives 16100 | -6/Archives | Accompanied by 20 allies 16136 | -6/Archives | Discovered new exit (range 16) 16150 | -6/Archives | Discovered exit to Factory (range 16) 16160 | -6/Archives | Discovered new exit (range 14) 16436 | -6/Archives | Identified exit to Hub_04(d) 16492 | -6/Archives | Build established: Commander-Mutant 21187 | -6/Archives | Entered Hub_04(d) 21187 | -6/Hub_04(d) | Accompanied by 18 allies 21193 | -6/Hub_04(d) | Spotted B-75 Beast 21280 | -6/Hub_04(d) | Lost 5 allies 21312 | -6/Hub_04(d) | Discovered exit to Factory (range 12) 21410 | -6/Hub_04(d) | Build established: Commander-Sprinter 21503 | -6/Hub_04(d) | Discovered exit to Factory (range 3) 21615 | -6/Hub_04(d) | Lost 4 allies 21632 | -6/Hub_04(d) | Discovered exit to Factory (range 11) 21811 | -6/Hub_04(d) | Build established: Scavenger-Sprinter 21887 | -6/Hub_04(d) | First assault squad dispatched 22056 | -6/Hub_04(d) | Network Hub disabled 22211 | -6/Hub_04(d) | Network Hub disabled 22259 | -6/Hub_04(d) | Network Hub disabled 22262 | -6/Hub_04(d) | Spotted Lightning 22263 | -6/Hub_04(d) | Spotted Lightning 22296 | -6/Hub_04(d) | Spotted Lightning 22310 | -6/Hub_04(d) | Discovered exit to Factory (range 5) 22334 | -6/Hub_04(d) | Spotted Lightning 22338 | -6/Hub_04(d) | Spotted Lightning 22339 | -6/Hub_04(d) | Spotted Lightning 22357 | -6/Hub_04(d) | DAS Turret deployed 22358 | -6/Hub_04(d) | Core integrity fell below 50% 22404 | -6/Hub_04(d) | Lost 11 parts (1p6n2u2w) 22421 | -6/Hub_04(d) | Network Hub disabled 22430 | -6/Hub_04(d) | Entered Factory 22430 | -5/Factory | Evolved 2 slots: Power x1, Utility x1 22726 | -5/Factory | Spotted B-75 Beast 22730 | -5/Factory | First assault squad dispatched 22906 | -5/Factory | Fabricated Lance? 23085 | -5/Factory | Manually triggered Chute Trap 23085 | -5/Factory | Sucked down chute 23085 | -5/Factory | Entered Waste 23089 | -5/Waste | Spotted C-40 Crusher 23091 | -5/Waste | Spotted C-40 Crusher 23096 | -5/Waste | Found Prototype Device 23097 | -5/Waste | Crushed by Compactor (1 part destroyed, 2 dropped) 23097 | -5/Waste | Identified Imp. Particle Accelerator 23100 | -5/Waste | EMP discharged 23100 | -5/Waste | Crushed by Compactor (1 part destroyed, 1 dropped) 23100 | -5/Waste | Spotted C-40 Crusher 23110 | -5/Waste | Spotted C-40 Crusher 23115 | -5/Waste | Spotted C-40 Crusher 23116 | -5/Waste | Spotted C-40 Crusher 23123 | -5/Waste | Discovered new exit (range 16) 23130 | -5/Waste | System corruption reached 10% 23131 | -5/Waste | Lost 9 parts (4n4u1w) 23146 | -5/Waste | Entered Factory 23402 | -5/Factory | Build established: Mutant 23700 | -5/Factory | Repaired Broken Hvy. Siege Treads 23755 | -5/Factory | Discovered new exit (range 6) 23761 | -5/Factory | Identified exit to Factory 24056 | -5/Factory | Identified exit to Upper Caves 24145 | -5/Factory | Build established: Tank 24289 | -5/Factory | Unchained authorized (QV-33N) 24615 | -5/Factory | System corruption reached 30% 24932 | -5/Factory | Repaired Lrn. Proton Cannon? 24999 | -5/Factory | Core integrity fell below 50% 25462 | -5/Factory | Lost 3 parts (2n1w) 25489 | -5/Factory | Build established: Skirmisher 25524 | -5/Factory | Repaired Broken Hvy. Siege Treads 25721 | -5/Factory | Core integrity fell below 20% 25788 | -5/Factory | Lost 10 parts (2p1n2u5w) 25953 | -5/Factory | Entered Upper Caves 26032 | -5/Upper Caves | Lost 4 parts (1n1u2w) 26317 | -5/Upper Caves | Entered a destroyed Warlord outpost 26344 | -5/Upper Caves | Discovered new exit (range 5) 26346 | -5/Upper Caves | Learned Factory machine intel 26352 | -5/Upper Caves | Entered another Upper Caves area 26353 | -5/Upper Caves | Destroyed by G-50 Soldier with Heavy Laser Last Messages --------------- 26324_ Found Mak. Salvage Targeting Computer. 26324_ Found 52 Matter. 26324_ Discarded Imp. Signal Interpreter. 26325_ Acquired 28 matter. 26326_ Acquired Mak. Salvage Targeting Computer. 26327_ Acquired 10 matter. 26328_ Dropped Wheel. 26328_ Acquired Adv. Signal Interpreter. 26330_ Dropped Cold Fusion Reactor. 26332_ System corrupted: Heat flow error (+195). 26340_ Acquired derelict log, extracted data. Data stored: Warlord entrances (x1). 26344_ EXIT=FOUND 26346_ Acquired derelict log, extracted data. Data stored: Factory machine intel. 26352_ System corrupted: Matter fused (-8). LOCATION=UNKNOWN GOAL=ESCAPE 26353_ VTOL Module destroyed. 26353_ Penetrated by Slug. Map ----- +----------------------------------------------------+ | ?????????????????????????????????????????????????? | | ?????????????????????????????????????????????????? | | ?????????????????????????????????????????????????? | | ?????????????????????????????????????????????????? | | ?????????????????????????????????????????????????? | | ?????????????????????????????????????????????????? | | ?????????????????????????????????????????????????? | | ?????????????????????????????????????????????????? | | ?????????????????????????????????????????????????? | | ?????????????????????????????????????????????????? | | ?????????????????????????????????????????????????? | | ?????????????????????????????????????????????????? | | ?????????????????????????????????????????????????? | | ?????????????????????????????????????????????????? | | ???????#####???############??????????????????????? | | ???????####################???????????####???????? | | ???????## ##### ##??????????? ####??????? | | ???????# ##?#####??? ###??????? | | ???????????? $######### ##??????? | | ????????????## Y #### ## ? ##??????? | | ????????????### g### ?????????????? | | ?????????????## ???????????????? | | ?????????????## g ??????????????????? | | ?????????????### ##???????????????????? | | ??????????????###?## ###???????????????????? | | ??????????????????## @ ###???????????????????? | | ??????????????????#### ##???????????????????? | | ?????????????????? ##### ##???????????????????? | | ????????????????????#### ???????????????????? | | ??????????????????????##### ????????????????? | | ?????????????????????? ######### ????????????????? | | ??????????????????????????###### ????????????????? | | ?????????????????????????????????????????????????? | | ?????????????????????????????????????????????????? | | ?????????????????????????????????????????????????? | | ?????????????????????????????????????????????????? | | ?????????????????????????????????????????????????? | | ?????????????????????????????????????????????????? | | ?????????????????????????????????????????????????? | | ?????????????????????????????????????????????????? | | ?????????????????????????????????????????????????? | | ?????????????????????????????????????????????????? | | ?????????????????????????????????????????????????? | | ?????????????????????????????????????????????????? | | ?????????????????????????????????????????????????? | | ?????????????????????????????????????????????????? | | ?????????????????????????????????????????????????? | | ?????????????????????????????????????????????????? | | ?????????????????????????????????????????????????? | | ?????????????????????????????????????????????????? | +----------------------------------------------------+ Best States ------------- Heat Dissipation 54 Coolant Potential 80 Energy Generation 31 Energy Capacity 615 Matter Stores 300 Matter Capacity 300 Sight Range 22 Robot Scan Range 20 Terrain Scan Range 14 Terrain Scan Density 10 Jamming Range 12 Additional Mass Support 16 Armor Coverage 450 Resistance: TH 20 Resistance: EX 25 Core Shielding 20 Evasion (%) 65 Melee Accuracy 8 Recoil Reduction 5 Salvage Targeting 4 Offensive Hacking 22 Defensive Hacking 24 Authchip Count 2 Trap Extractor Capacity 6 Item Schematics ----------------- Huge Storage Unit | -8/Storage | Hacked Cryofiber Web | -8/Recycling | Hacked Hcp. Storage Unit | -8/Recycling | Hacked Diametric Drive | -6/Factory | Scanalyzed Robot Schematics ------------------ M-28 Smith | -8/Recycling | Hacked H-55 Commando | -8/Recycling | Hacked Fabricated ------------ Lance | x2 | -5/Factory | Preloaded Repaired ---------- Lgt. Treads | 60% | -10/Materials Pulse Rifle | 57% | -8/Materials Exp. Sensor Array | 13% | -6/Factory Micro-nuke Launcher | 6% | -6/Factory Diametric Drive | 10% | -6/Factory | Broken Phasing Sabre | 9% | -6/Extension Phasing Sabre | 33% | -6/Extension Enh. Nuclear Core | 70% | -6/Extension Hvy. Siege Treads | 14% | -5/Factory | Broken Lrn. Proton Cannon | 25% | -5/Factory Hvy. Siege Treads | 19% | -5/Factory | Broken Studied --------- None Alien Tech Used ----------------- None Achievements -------------- None Challenges ------------ None Game ------ Seed RiotGatlingDeflector Manual? 0 Play Time 04:04:09 Cumulative 1072.1 hours Start 2025.11.15 @ 16:52:07 End 2025.11.16 @ 17:06:22 Sessions 3 Manual Loads 0 Difficulty Rogue Special Mode None Game No. 382 Rogue 377 Adventurer 4 Explorer 1 Win Type - Total 23 Types 13/3/1/2/0/1/0/0/2/1 Lore% 96 Gallery% 94 Achievement% 80 Wizard Run 0 Options --------- Layout 0 ASCII 0 Keyboard 0 Movement Numpad Keybinds 0 Fullscreen 2 Font 18/SmallcapsGlow Map View 76x50 Zoom Use 0% Tactical HUD 1 Map Filters NONE Filters NONE Steam 1 RUN: 4c17c8db-e34e-4f86-b24a-f9e3071cc1b6